fUSD/lending_fUSD_20250616
["ID","MTS","AMOUNT","RATE_DAILY","PERIOD"]
[366101859,1750062660003,-151.0,0.00016766,2]
[366101860,1750062660012,-1353.112308,0.00016766,2]
[366101861,1750062660022,-1353.112308,0.00016766,2]
[366101862,1750062660031,-151.0,0.00016766,2]
[366101863,1750062660041,-203.295396,0.00016766,2]
[366101864,1750062660051,-203.295396,0.00016766,2]
[366101865,1750062660061,-151.0,0.00016766,2]
[366101866,1750062660072,-205.73,0.00016766,2]
[366101867,1750062660081,-150.0,0.00016766,2]
[366101868,1750062660090,-300.0,0.00016766,2]
[366101869,1750062660100,-300.0,0.00016766,2]
[366101870,1750062660110,-723580.24073005,0.00016767,2]
[366101871,1750062660943,-319.71793998,0.00016438,2]
[366101872,1750062660955,-170.28206002,0.00016438,2]
[366101873,1750062660964,-490.0,0.00016438,2]
[366101874,1750062660973,-490.0,0.00016438,2]
[366101875,1750062660982,-490.0,0.00016438,2]
[366101876,1750062660992,-490.0,0.00016602,2]
[366101877,1750062661002,-169.87767286,0.00016619,2]
[366101878,1750062661011,-295.214219,0.00016759,2]
[366101879,1750062661021,-295.214219,0.0001676,2]
[366101880,1750062661031,-2373.21182912,0.00016767,2]
[366101881,1750062661141,-282.78234949,0.00016767,2]
[366101882,1750062663105,5000.0,0.000155,2]
[366101883,1750062670491,10000.0,0.000155,2]
[366101884,1750062671403,200.0,0.00014711,2]
[366101885,1750062682956,10000.0,0.000155,2]
[366101886,1750062724091,10000.0,0.000155,2]
[366101887,1750062735153,4800.0,0.000155,2]
[366101889,1750062874511,183.0,0.00013699,2]
[366101890,1750062975159,-9917.18,0.00015494,2]
[366101891,1750062975186,-82.82,0.00015497,2]
[366101892,1750063038311,-217.18,0.00015497,2]
[366101893,1750063038339,-300.0,0.00015499,2]
[366101894,1750063038368,-124.0,0.000155,2]
[366101895,1750063078066,312.77,0.00015491,2]
[366101896,1750063092518,202.0,0.00014868,2]
[366101898,1750063300444,1000.0,0.00015496,2]
[366101900,1750063327828,414.52,0.00015496,2]
[366101907,1750063451966,203.0,0.00014942,2]
[366101932,1750063472718,2534.48,0.00015481,2]
[366101954,1750063489027,23900.0,0.00015481,2]
[366101976,1750063503622,276.05004688,0.0001509,2]
[366101981,1750063505460,150.0,0.0001509,2]
[366101986,1750063509047,150.10776837,0.0001509,2]
[366101987,1750063509102,150.17599446,0.0001509,2]
[366101991,1750063511498,150.0,0.0001509,2]
[366101995,1750063517231,150.0,0.0001509,2]
[366102008,1750063537726,200.0,0.00015454,2]
[366102023,1750063621592,500.0,0.00015435,2]
[366102026,1750063651347,1298.73,0.00015425,2]
[366102037,1750063738079,401.57,0.00024657,120]
[366102045,1750063796611,407.23,0.00015434,2]
[366102048,1750063811815,203.0,0.00015041,2]
[366102055,1750063832248,-150.0,0.0001551,2]
[366102056,1750063832258,-220.04022624,0.00015526,2]
[366102057,1750063832270,-29.95977376,0.00015526,2]
[366102058,1750063832280,-600.0,0.00015526,4]
[366102059,1750063832290,-813.51,0.00015553,2]
[366102060,1750063832300,-150.0,0.00015649,2]
[366102061,1750063832310,-165.42,0.00015908,2]
[366102062,1750063832320,-150.0,0.00015929,2]
[366102063,1750063832330,-203.0,0.00016165,3]
[366102064,1750063832340,-150.0,0.00016208,2]
[366102065,1750063832350,-152.0,0.00016231,3]
[366102066,1750063832360,-550.0,0.00016299,2]
[366102067,1750063832369,-1200.0,0.00016299,2]
[366102068,1750063832379,-1163.59,0.000163,2]
[366102069,1750063832390,-302.14,0.000163,2]
[366102070,1750063832400,-407.7,0.000163,2]
[366102071,1750063832410,-162.66,0.000163,2]
[366102072,1750063832420,-455.2,0.000163,2]
[366102073,1750063832430,-288.97,0.000163,2]
[366102074,1750063832440,-331.15,0.000163,2]
[366102075,1750063832450,-69.6678637,0.000163,2]
[366102076,1750063832486,-385.5321363,0.000163,2]
[366102077,1750063832495,-150.0,0.000163,2]
[366102078,1750063832505,-170.82,0.000163,2]
[366102079,1750063832516,-301.02,0.000163,2]
[366102080,1750063832525,-455.2,0.000163,2]
[366102081,1750063832535,-150.0,0.000163,2]
[366102082,1750063832545,-150.0,0.000163,2]
[366102083,1750063832555,-363.36699928,0.000163,2]
[366102085,1750063832683,-801.30300072,0.000163,2]
[366102086,1750063832693,-150.0,0.000163,2]
[366102087,1750063832703,-170.82,0.000163,2]
[366102088,1750063832712,-150.0,0.000163,2]
[366102089,1750063832722,-455.2,0.000163,2]
[366102090,1750063832732,-1164.67,0.000163,2]
[366102091,1750063832741,-150.0,0.000163,2]
[366102092,1750063832750,-1164.67,0.000163,2]
[366102093,1750063832759,-455.2,0.000163,2]
[366102094,1750063832769,-170.82,0.000163,2]
[366102095,1750063832779,-150.0,0.000163,2]
[366102096,1750063832790,-150.0,0.000163,2]
[366102097,1750063832804,-150.0,0.000163,2]
[366102098,1750063832813,-1164.67,0.000163,2]
[366102099,1750063832824,-150.0,0.000163,2]
[366102100,1750063832834,-455.2,0.000163,2]
[366102101,1750063832844,-150.0,0.000163,2]
[366102102,1750063832853,-170.82,0.000163,2]
[366102103,1750063832863,-150.0,0.000163,2]
[366102104,1750063832873,-455.2,0.000163,2]
[366102105,1750063832882,-150.0,0.000163,2]
[366102106,1750063832892,-150.0,0.000163,2]
[366102107,1750063832901,-170.82,0.000163,2]
[366102108,1750063832911,-1164.67,0.000163,2]
[366102109,1750063832920,-656.01,0.000163,2]
[366102110,1750063832930,-500.32,0.000163,2]
[366102111,1750063832940,-150.0,0.000163,2]
[366102112,1750063832950,-170.82,0.000163,2]
[366102113,1750063832959,-170.82,0.000163,2]
[366102114,1750063832980,-150.0,0.000163,2]
[366102115,1750063832993,-150.0,0.000163,2]
[366102116,1750063833003,-161.54035394,0.00016338,2]
[366102117,1750063833013,-1193.62078446,0.00016338,2]
[366102118,1750063833023,-150.0,0.00016348,2]
[366102119,1750063833034,-1193.62078445,0.00016393,2]
[366102120,1750063833044,-207.4,0.00016428,2]
[366102121,1750063833054,-2350.52072141,0.00016428,2]
[366102122,1750063833065,-151.0,0.00016428,2]
[366102123,1750063833076,-214.39860607,0.0001643,2]
[366102124,1750063833087,-3249.0212044,0.00016437,2]
[366102125,1750063833097,-500.0,0.00016437,2]
[366102126,1750063833108,-501.12357183,0.00016437,2]
[366102127,1750063833119,-483.85240885,0.00016437,2]
[366102128,1750063833129,-159.66544717,0.00016437,2]
[366102129,1750063833140,-500.0,0.00016437,2]
[366102130,1750063833151,-502.18857201,0.00016437,2]
[366102131,1750063833162,-284.84439776,0.00016437,2]
[366102132,1750063833172,-912.73,0.00016437,2]
[366102133,1750063833183,-491.36768013,0.00016438,2]
[366102134,1750063833193,-490.0,0.00016438,2]
[366102135,1750063833204,-490.0,0.00016438,2]
[366102136,1750063833214,-500.0,0.00016438,2]
[366102137,1750063833224,-500.0,0.00016438,2]
[366102138,1750063833235,-587.26710932,0.00016438,2]
[366102139,1750063833246,-500.0,0.00016438,2]
[366102140,1750063833255,-500.0,0.00016438,2]
[366102141,1750063833265,-203.62325509,0.00016438,2]
[366102142,1750063833276,-500.0,0.00016438,2]
[366102143,1750063833286,-500.0,0.00016438,2]
[366102144,1750063833297,-500.0,0.00016438,2]
[366102145,1750063833308,-490.0,0.00016438,2]
[366102146,1750063833318,-490.0,0.00016438,2]
[366102147,1750063833331,-490.0,0.00016438,2]
[366102149,1750063833342,-564.89,0.00016438,2]
[366102150,1750063833353,-606.26,0.00016438,2]
[366102151,1750063833364,-490.0,0.00016438,2]
[366102152,1750063833375,-490.0,0.00016438,2]
[366102153,1750063833386,-490.0,0.00016438,2]
[366102154,1750063833396,-490.0,0.00016438,2]
[366102155,1750063833415,-490.0,0.00016438,2]
[366102156,1750063833426,-490.0,0.00016438,2]
[366102157,1750063833437,-568.5,0.00016438,2]
[366102158,1750063833448,-490.0,0.00016438,2]
[366102159,1750063833460,-495.42036203,0.00016438,2]
[366102160,1750063833471,-490.0,0.00016438,2]
[366102161,1750063833482,-495.21027509,0.00016438,2]
[366102162,1750063833494,-490.0,0.00016438,2]
[366102164,1750063833506,-450.0,0.00016438,2]
[366102166,1750063833517,-490.0,0.00016438,2]
[366102168,1750063833528,-528.88,0.00016438,2]
[366102169,1750063833538,-490.0,0.00016438,2]
[366102171,1750063833550,-490.0,0.00016438,2]
[366102174,1750063833560,-490.0,0.00016438,2]
[366102175,1750063833571,-490.0,0.00016438,2]
[366102178,1750063833586,-490.0,0.00016438,2]
[366102180,1750063833597,-490.0,0.00016438,2]
[366102182,1750063833608,-490.0,0.00016438,2]
[366102184,1750063833618,-490.0,0.00016438,2]
[366102186,1750063833629,-490.0,0.00016438,2]
[366102188,1750063833640,-490.0,0.00016438,2]
[366102190,1750063833652,-490.0,0.00016438,2]
[366102192,1750063833663,-574.83,0.00016438,2]
[366102194,1750063833673,-490.0,0.00016438,2]
[366102196,1750063833684,-490.0,0.00016438,2]
[366102198,1750063833695,-504.65,0.00016438,2]
[366102200,1750063833705,-490.0,0.00016438,2]
[366102202,1750063833717,-490.0,0.00016438,2]
[366102204,1750063833728,-438.61008157,0.00016438,2]
[366102206,1750063833738,-490.0,0.00016438,2]
[366102208,1750063833750,-490.0,0.00016438,2]
[366102210,1750063833761,-490.0,0.00016438,2]
[366102212,1750063833772,-490.0,0.00016438,2]
[366102214,1750063833783,-981.23,0.00016438,2]
[366102215,1750063833796,-490.0,0.00016438,2]
[366102216,1750063833817,-490.0,0.00016438,2]
[366102217,1750063833830,-490.0,0.00016438,2]
[366102218,1750063833842,-649.21,0.00016438,2]
[366102219,1750063833853,-490.0,0.00016438,2]
[366102220,1750063833870,-490.0,0.00016438,2]
[366102221,1750063833882,-490.0,0.00016438,2]
[366102222,1750063833895,-490.0,0.00016438,2]
[366102223,1750063833908,-490.0,0.00016438,2]
[366102225,1750063833922,-497.03590707,0.00016438,2]
[366102227,1750063833935,-493.78336874,0.00016438,2]
[366102228,1750063833947,-490.0,0.00016438,2]
[366102229,1750063833959,-490.0,0.00016438,2]
[366102230,1750063833973,-435.49817229,0.00016438,2]
[366102231,1750063833985,-490.0,0.00016438,2]
[366102232,1750063833998,-500.0,0.00016438,2]
[366102233,1750063834009,-490.0,0.00016438,2]
[366102234,1750063834022,-490.0,0.00016438,2]
[366102235,1750063834034,-955.18,0.00016438,2]
[366102236,1750063834046,-490.0,0.00016438,2]
[366102237,1750063834058,-571.41,0.00016438,2]
[366102238,1750063834070,-490.0,0.00016438,2]
[366102239,1750063834082,-490.0,0.00016438,2]
[366102240,1750063834095,-490.0,0.00016438,2]
[366102241,1750063834106,-490.0,0.00016438,2]
[366102242,1750063834117,-503.3,0.00016438,2]
[366102243,1750063834129,-490.0,0.00016438,2]
[366102244,1750063834140,-654.27367272,0.00016438,2]
[366102245,1750063834161,-682.50632728,0.00016438,2]
[366102246,1750063834173,-490.0,0.00016438,2]
[366102247,1750063834184,-490.0,0.00016438,2]
[366102248,1750063834195,-116.09451467,0.00016438,2]
[366102249,1750063834214,-533.64022597,0.00016438,2]
[366102250,1750063834248,-442.04525936,0.00016438,2]
[366102251,1750063834260,-490.0,0.00016438,2]
[366102252,1750063834272,-490.0,0.00016438,2]
[366102253,1750063834284,-37.6625777,0.00016438,2]
[366102254,1750063834298,-452.3374223,0.00016438,2]
[366102255,1750063834314,-490.0,0.00016438,2]
[366102256,1750063834327,-490.0,0.00016438,2]
[366102257,1750063834339,-1008.93,0.00016438,2]
[366102258,1750063834351,-280.02455662,0.00016438,2]
[366102261,1750063838904,-545.89964758,0.000164,2]
[366102262,1750063838922,-454.10035242,0.000164,2]
[366102263,1750063838932,-314.62786389,0.000164,2]
[366102264,1750063838944,-685.37213611,0.000164,2]
[366102265,1750063838952,-71.12862853,0.000164,2]
[366102287,1750063839205,-928.87137147,0.000164,2]
[366102289,1750063839216,-718.30544338,0.00016438,2]
[366102291,1750063839227,-359.7334498,0.00016438,2]
[366102392,1750063840257,-909.5165502,0.00016438,2]
[366102394,1750063840268,-490.0,0.00016438,2]
[366102396,1750063840278,-490.0,0.00016438,2]
[366102398,1750063840288,-704.25,0.00016438,2]
[366102400,1750063840298,-1358.12,0.00016438,2]
[366102402,1750063840307,-1298.79,0.00016438,2]
[366102404,1750063840317,-515.38,0.00016438,2]
[366102406,1750063840327,-490.0,0.00016438,2]
[366102407,1750063840338,-674.87,0.00016438,2]
[366102409,1750063840348,-603.15,0.00016438,2]
[366102411,1750063840358,-490.0,0.00016438,2]
[366102413,1750063840369,-605.88,0.00016438,2]
[366102415,1750063840378,-834.29,0.00016438,2]
[366102417,1750063840388,-490.0,0.00016438,2]
[366102419,1750063840398,-867.21,0.00016438,2]
[366102421,1750063840408,-490.0,0.00016438,2]
[366102424,1750063840419,-612.27,0.00016438,2]
[366102426,1750063840429,-490.0,0.00016438,2]
[366102428,1750063840440,-490.0,0.00016438,2]
[366102430,1750063840449,-490.0,0.00016438,2]
[366102432,1750063840459,-744.05,0.00016438,2]
[366102434,1750063840470,-792.19,0.00016438,2]
[366102435,1750063840480,-490.0,0.00016438,2]
[366102437,1750063840490,-873.81,0.00016438,2]
[366102439,1750063840501,-490.0,0.00016438,2]
[366102441,1750063840512,-614.51602499,0.00016438,2]
[366102443,1750063840521,-510.22,0.00016438,2]
[366102445,1750063840531,-1165.13,0.00016438,2]
[366102447,1750063840541,-685.18,0.00016438,2]
[366102449,1750063840550,-801.85,0.00016438,2]
[366102451,1750063840560,-568.18,0.00016438,2]
[366102453,1750063840570,-490.0,0.00016438,2]
[366102455,1750063840581,-919.78,0.00016438,2]
[366102457,1750063840591,-490.0,0.00016438,2]
[366102459,1750063840601,-1060.27,0.00016438,2]
[366102461,1750063840611,-605.43,0.00016438,2]
[366102463,1750063840621,-490.0,0.00016438,2]
[366102464,1750063840633,-490.0,0.00016438,2]
[366102465,1750063840643,-1250.3,0.00016438,2]
[366102466,1750063840653,-862.58,0.00016438,2]
[366102467,1750063840664,-1701.25,0.00016438,2]
[366102468,1750063840674,-1131.38,0.00016438,2]
[366102469,1750063840683,-490.0,0.00016438,2]
[366102470,1750063840694,-490.0,0.00016438,2]
[366102471,1750063840704,-490.0,0.00016438,2]
[366102472,1750063840714,-1030.33,0.00016438,2]
[366102473,1750063840724,-490.0,0.00016438,2]
[366102474,1750063840735,-1111.09,0.00016438,2]
[366102476,1750063840745,-536.8,0.00016438,2]
[366102478,1750063840754,-490.0,0.00016438,2]
[366102480,1750063840764,-490.0,0.00016438,2]
[366102482,1750063840775,-1895.12,0.00016438,2]
[366102484,1750063840785,-490.0,0.00016438,2]
[366102486,1750063840795,-834.23,0.00016438,2]
[366102488,1750063840810,-490.0,0.00016438,2]
[366102490,1750063840819,-563.93,0.00016438,2]
[366102492,1750063840829,-490.0,0.00016438,2]
[366102495,1750063840840,-490.0,0.00016438,2]
[366102497,1750063840851,-490.0,0.00016438,2]
[366102499,1750063840861,-645.45,0.00016438,2]
[366102501,1750063840872,-490.0,0.00016438,2]
[366102503,1750063840882,-490.0,0.00016438,2]
[366102505,1750063840892,-490.0,0.00016438,2]
[366102507,1750063840902,-490.0,0.00016438,2]
[366102509,1750063840911,-1071.99,0.00016438,2]
[366102511,1750063840921,-863.77,0.00016438,2]
[366102513,1750063840931,-490.0,0.00016438,2]
[366102515,1750063840940,-515.32,0.00016438,2]
[366102517,1750063840950,-490.0,0.00016438,2]
[366102519,1750063840961,-490.0,0.00016438,2]
[366102521,1750063840971,-490.0,0.00016438,2]
[366102523,1750063840981,-627.27,0.00016438,2]
[366102539,1750063841124,-581.94,0.00016438,2]
[366102541,1750063841134,-490.0,0.00016438,2]
[366102543,1750063841144,-490.0,0.00016438,2]
[366102545,1750063841153,-490.0,0.00016438,2]
[366102547,1750063841163,-490.0,0.00016438,2]
[366102549,1750063841172,-490.0,0.00016438,2]
[366102551,1750063841182,-178.84054972,0.00016438,2]
[366102553,1750063841191,-886.12,0.00016438,2]
[366102555,1750063841200,-490.0,0.00016438,2]
[366102557,1750063841210,-544.93,0.00016438,2]
[366102559,1750063841220,-767.9,0.00016438,2]
[366102561,1750063841230,-490.0,0.00016438,2]
[366102563,1750063841240,-607.14,0.00016438,2]
[366102565,1750063841249,-490.0,0.00016438,2]
[366102567,1750063841259,-1432.39,0.00016438,2]
[366102569,1750063841268,-960.7,0.00016438,2]
[366102571,1750063841277,-490.0,0.00016438,2]
[366102573,1750063841286,-490.0,0.00016438,2]
[366102575,1750063841295,-1013.91,0.00016438,2]
[366102577,1750063841305,-490.0,0.00016438,2]
[366102579,1750063841314,-684.27,0.00016438,2]
[366102581,1750063841323,-490.0,0.00016438,2]
[366102583,1750063841333,-490.0,0.00016438,2]
[366102585,1750063841342,-490.0,0.00016438,2]
[366102587,1750063841352,-524.71,0.00016438,2]
[366102589,1750063841362,-490.0,0.00016438,2]
[366102591,1750063841370,-490.0,0.00016438,2]
[366102593,1750063841380,-490.0,0.00016438,2]
[366102595,1750063841389,-533.22,0.00016438,2]
[366102597,1750063841398,-490.0,0.00016438,2]
[366102599,1750063841408,-1100.01,0.00016438,2]
[366102601,1750063841417,-1477.51,0.00016438,2]
[366102603,1750063841426,-1000.41,0.00016438,2]
[366102605,1750063841437,-490.0,0.00016438,2]
[366102607,1750063841446,-705.81,0.00016438,2]
[366102609,1750063841456,-953.0,0.00016438,2]
[366102611,1750063841466,-566.33,0.00016438,2]
[366102612,1750063841475,-490.0,0.00016438,2]
[366102615,1750063841487,-693.85,0.00016438,2]
[366102617,1750063841497,-490.0,0.00016438,2]
[366102619,1750063841506,-899.96,0.00016438,2]
[366102621,1750063841515,-635.24,0.00016438,2]
[366102623,1750063841525,-550.55,0.00016438,2]
[366102624,1750063841534,-490.0,0.00016438,2]
[366102626,1750063841543,-490.0,0.00016438,2]
[366102628,1750063841553,-490.0,0.00016438,2]
[366102630,1750063841562,-1176.39,0.00016438,2]
[366102632,1750063841571,-490.0,0.00016438,2]
[366102634,1750063841581,-490.0,0.00016438,2]
[366102636,1750063841590,-521.23,0.00016438,2]
[366102638,1750063841600,-490.0,0.00016438,2]
[366102640,1750063841609,-493.7,0.00016438,2]
[366102642,1750063841618,-490.0,0.00016438,2]
[366102644,1750063841627,-490.0,0.00016438,2]
[366102646,1750063841637,-490.0,0.00016438,2]
[366102648,1750063841646,-1430.56,0.00016438,2]
[366102650,1750063841655,-1254.95,0.00016438,2]
[366102652,1750063841664,-490.0,0.00016438,2]
[366102654,1750063841673,-490.0,0.00016438,2]
[366102656,1750063841682,-490.0,0.00016438,2]
[366102658,1750063841691,-490.0,0.00016438,2]
[366102660,1750063841701,-490.0,0.00016438,2]
[366102662,1750063841710,-537.31,0.00016438,2]
[366102664,1750063841720,-580.16,0.00016438,2]
[366102666,1750063841728,-1301.1,0.00016438,2]
[366102668,1750063841738,-822.86,0.00016438,2]
[366102670,1750063841748,-490.0,0.00016438,2]
[366102672,1750063841758,-490.0,0.00016438,2]
[366102674,1750063841767,-490.0,0.00016438,2]
[366102676,1750063841777,-490.0,0.00016438,2]
[366102678,1750063841786,-490.0,0.00016438,2]
[366102680,1750063841795,-490.0,0.00016438,2]
[366102682,1750063841809,-1146.86,0.00016438,2]
[366102684,1750063841819,-490.0,0.00016438,2]
[366102686,1750063841828,-543.03,0.00016438,2]
[366102688,1750063841838,-490.0,0.00016438,2]
[366102690,1750063841848,-589.44,0.00016438,2]
[366102692,1750063841857,-881.47,0.00016438,2]
[366102694,1750063841866,-490.0,0.00016438,2]
[366102696,1750063841876,-1151.04,0.00016438,2]
[366102698,1750063841887,-490.0,0.00016438,2]
[366102700,1750063841897,-490.0,0.00016438,2]
[366102702,1750063841906,-490.0,0.00016438,2]
[366102704,1750063841916,-490.0,0.00016438,2]
[366102706,1750063841925,-1561.86,0.00016438,2]
[366102708,1750063841934,-490.0,0.00016438,2]
[366102710,1750063841943,-300.0,0.00016438,2]
[366102712,1750063841953,-490.0,0.00016438,2]
[366102714,1750063841962,-1298.71,0.00016438,2]
[366102716,1750063841971,-490.0,0.00016438,2]
[366102718,1750063841980,-490.0,0.00016438,2]
[366102720,1750063841990,-932.29,0.00016438,2]
[366102722,1750063842000,-490.0,0.00016438,2]
[366102724,1750063842010,-1017.74,0.00016438,2]
[366102726,1750063842019,-604.44,0.00016438,2]
[366102728,1750063842029,-921.84,0.00016438,2]
[366102730,1750063842038,-490.0,0.00016438,2]
[366102732,1750063842048,-490.0,0.00016438,2]
[366102734,1750063842057,-2192.52,0.00016438,2]
[366102736,1750063842067,-490.0,0.00016438,2]
[366102738,1750063842077,-510.55,0.00016438,2]
[366102740,1750063842087,-1070.8,0.00016438,2]
[366102742,1750063842097,-490.0,0.00016438,2]
[366102744,1750063842106,-490.0,0.00016438,2]
[366102746,1750063842115,-490.0,0.00016438,2]
[366102748,1750063842125,-785.57,0.00016438,2]
[366102750,1750063842134,-490.0,0.00016438,2]
[366102752,1750063842143,-490.0,0.00016438,2]
[366102754,1750063842152,-533.12,0.00016438,2]
[366102756,1750063842162,-490.0,0.00016438,2]
[366102758,1750063842171,-490.0,0.00016438,2]
[366102760,1750063842181,-490.0,0.00016438,2]
[366102762,1750063842190,-1801.41,0.00016438,2]
[366102764,1750063842200,-490.0,0.00016438,2]
[366102766,1750063842210,-490.0,0.00016438,2]
[366102768,1750063842219,-501.65,0.00016438,2]
[366102770,1750063842228,-1076.14,0.00016438,2]
[366102772,1750063842238,-490.0,0.00016438,2]
[366102774,1750063842247,-490.0,0.00016438,2]
[366102776,1750063842257,-1155.86,0.00016438,2]
[366102778,1750063842266,-1292.18,0.00016438,2]
[366102780,1750063842275,-490.0,0.00016438,2]
[366102782,1750063842285,-490.0,0.00016438,2]
[366102784,1750063842294,-490.0,0.00016438,2]
[366102786,1750063842304,-490.0,0.00016438,2]
[366102788,1750063842313,-490.0,0.00016438,2]
[366102790,1750063842323,-490.0,0.00016438,2]
[366102792,1750063842332,-490.0,0.00016438,2]
[366102794,1750063842341,-1323.32,0.00016438,2]
[366102796,1750063842351,-717.8,0.00016438,2]
[366102798,1750063842360,-706.69,0.00016438,2]
[366102800,1750063842370,-1163.75,0.00016438,2]
[366102802,1750063842379,-490.0,0.00016438,2]
[366102804,1750063842389,-1669.89,0.00016438,2]
[366102806,1750063842398,-634.73715353,0.00016438,2]
[366102808,1750063842407,-880.91,0.00016438,2]
[366102810,1750063842417,-963.06,0.00016438,2]
[366102812,1750063842426,-490.0,0.00016438,2]
[366102814,1750063842435,-490.0,0.00016438,2]
[366102816,1750063842444,-490.0,0.00016438,2]
[366102818,1750063842453,-264.61577739,0.00016438,2]
[366102820,1750063842463,-490.0,0.00016438,2]
[366102822,1750063842472,-490.0,0.00016438,2]
[366102824,1750063842482,-1286.68,0.00016438,2]
[366102826,1750063842491,-490.0,0.00016438,2]
[366102828,1750063842500,-1606.59,0.00016438,2]
[366102830,1750063842511,-490.0,0.00016438,2]
[366102832,1750063842521,-490.0,0.00016438,2]
[366102834,1750063842530,-490.0,0.00016438,2]
[366102836,1750063842539,-490.0,0.00016438,2]
[366102838,1750063842549,-490.0,0.00016438,2]
[366102840,1750063842558,-490.0,0.00016438,2]
[366102842,1750063842567,-490.0,0.00016438,2]
[366102844,1750063842577,-758.45,0.00016438,2]
[366102846,1750063842588,-490.0,0.00016438,2]
[366102848,1750063842597,-512.76,0.00016438,2]
[366102850,1750063842607,-1349.97,0.00016438,2]
[366102852,1750063842616,-490.0,0.00016438,2]
[366102854,1750063842625,-490.0,0.00016438,2]
[366102856,1750063842635,-1243.34,0.00016438,2]
[366102858,1750063842644,-595.99,0.00016438,2]
[366102860,1750063842653,-770.92,0.00016438,2]
[366102862,1750063842663,-490.0,0.00016438,2]
[366102864,1750063842672,-490.0,0.00016438,2]
[366102866,1750063842681,-490.0,0.00016438,2]
[366102868,1750063842690,-1075.69,0.00016438,2]
[366102870,1750063842699,-490.0,0.00016438,2]
[366102872,1750063842709,-559.81,0.00016438,2]
[366102874,1750063842719,-490.0,0.00016438,2]
[366102876,1750063842729,-1158.72,0.00016438,2]
[366102879,1750063842740,-490.0,0.00016438,2]
[366102881,1750063842750,-250.0,0.00016438,2]
[366102883,1750063842760,-490.0,0.00016438,2]
[366102885,1750063842770,-655.22,0.00016438,2]
[366102887,1750063842779,-2016.12,0.00016438,2]
[366102889,1750063842788,-490.0,0.00016438,2]
[366102890,1750063842797,-490.0,0.00016438,2]
[366102893,1750063842812,-490.0,0.00016438,2]
[366102895,1750063842822,-490.0,0.00016438,2]
[366102896,1750063842832,-490.0,0.00016438,2]
[366102899,1750063842843,-490.0,0.00016438,2]
[366102900,1750063842853,-610.24,0.00016438,2]
[366102902,1750063842863,-1020.6,0.00016438,2]
[366102904,1750063842873,-490.0,0.00016438,2]
[366102906,1750063842884,-490.0,0.00016438,2]
[366102908,1750063842893,-490.0,0.00016438,2]
[366102910,1750063842903,-490.0,0.00016438,2]
[366102912,1750063842913,-1453.01,0.00016438,2]
[366102914,1750063842922,-490.0,0.00016438,2]
[366102916,1750063842933,-490.0,0.00016438,2]
[366102918,1750063842942,-490.0,0.00016438,2]
[366102920,1750063842952,-1735.92,0.00016438,2]